[Event "Championnat du monde jeunes U10F"]
[Date "2024.11.15"]
[White "Nguyen Doan, Bao Anh Angelina"]
[Black "Blakhina Viktoryia"]
[WhiteElo "1628"]
[BlackElo "1436"]
[Round "1.35"]
[Result "1/2-1/2"]
[TimeControl "5400+30"]

1. e4 {[%clk 1:30:59]} 1... e6 {[%clk 1:30:53]} 2. d4 {[%clk 1:31:24]} 2... d5
{[%clk 1:31:16]} 3. Nc3 {[%clk 1:31:49]} 3... dxe4 {[%clk 1:31:35]} 4. Nxe4
{[%clk 1:32:15]} 4... Nd7 {[%clk 1:31:50]} 5. Nf3 {[%clk 1:32:33]} 5... Ngf6
{[%clk 1:32:03]} 6. Bd3 {[%clk 1:32:55]} 6... Nxe4 {[%clk 1:28:04]} 7. Bxe4
{[%clk 1:33:15]} 7... Nf6 {[%clk 1:28:29]} 8. Bg5 {[%clk 1:33:36]} 8... Be7
{[%clk 1:28:44]} 9. Bxf6 {[%clk 1:34:01]} 9... Bxf6 {[%clk 1:29:04]} 10. Qd3
{[%clk 1:34:17]} 10... h6 {[%clk 1:22:33]} 11. O-O-O {[%clk 1:33:28]} 11... O-O
{[%clk 1:18:49]} 12. h4 {[%clk 1:33:04]} 12... Be7 {[%clk 1:12:58]} 13. Qc3
{[%clk 1:27:39]} 13... Bd6 {[%clk 0:53:46]} 14. Kb1 {[%clk 1:21:40]} 14... c6
{[%clk 0:49:35]} 15. g4 {[%clk 1:12:15]} 15... Qe7 {[%clk 0:42:59]} 16. g5
{[%clk 1:09:19]} 16... h5 {[%clk 0:39:02]} 17. Ne5 {[%clk 1:01:47]} 17... Bxe5
{[%clk 0:34:30]} 18. dxe5 {[%clk 1:02:12]} 18... Bd7 {[%clk 0:31:45]} 19. Rd6
{[%clk 0:57:54]} 19... Rad8 {[%clk 0:29:04]} 20. Rdd1 {[%clk 1:02:12]} 20... Ra8
{[%clk 0:31:45]} 21. Rd6 {[%clk 0:57:54]} 21... Rad8 {[%clk 0:29:04]} 22. Rhd1
{[%clk 0:54:55]} 22... Bc8 {[%clk 0:27:06]} 23. Qd4 {[%clk 0:54:07]} 23... Rxd6
{[%clk 0:25:49]} 24. exd6 {[%clk 0:52:23]} 24... Qd7 {[%clk 0:23:27]} 25. Qxa7
{[%clk 0:46:20]} 25... e5 {[%clk 0:17:38]} 26. Qe3 {[%clk 0:41:27]} 26... Rd8
{[%clk 0:15:02]} 27. Bf3 {[%clk 0:33:43]} 27... Qe6 {[%clk 0:08:34]} 28. Bxh5
{[%clk 0:32:14]} 28... Rxd6 {[%clk 0:06:44]} 29. Rxd6 {[%clk 0:31:31]} 29...
Qxd6 {[%clk 0:07:07]} 30. f4 {[%clk 0:26:53]} 30... Qd5 {[%clk 0:02:51]} 31.
fxe5 {[%clk 0:18:43]} 31... Qh1+ {[%clk 0:02:56]} 32. Qc1 {[%clk 0:19:09]} 32...
Qxh4 {[%clk 0:03:11]} 33. Be2 {[%clk 0:18:08]} 33... Qe4 {[%clk 0:03:20]} 34.
Qd1 {[%clk 0:12:52]} 34... Qxe5 {[%clk 0:02:03]} 35. Qd8+ {[%clk 0:12:20]} 35...
Kh7 {[%clk 0:02:26]} 36. Qxc8 {[%clk 0:10:00]} 36... Qxe2 {[%clk 0:02:50]} 37.
Qf5+ {[%clk 0:08:09]} 37... Kg8 {[%clk 0:03:08]} 38. Qc8+ {[%clk 0:08:19]} 38...
Kh7 {[%clk 0:03:31]} 39. Qf5+ {[%clk 0:07:23]} 1/2-1/2

[Variant "Standard"]
[Site "Europe Echecs"]

[Event "Championnat du monde jeunes U10F"]
[Date "2024.11.15"]
[White "Muradli, Sabira"]
[Black "Khusnitdinova, Husnorakhon"]
[WhiteElo "1430"]
[BlackElo "1626"]
[Round "1.36"]
[Result "0-1"]
[TimeControl "5400+30"]

1. e4 e5 2. Nf3 Nc6 3. Bc4 Bc5 4. c3 Nf6 5. d4 exd4 6. cxd4 Bb4+ 7. Nc3 Nxe4 8.
O-O Bxc3 9. bxc3 d5 10. Bd3 Bf5 11. Re1 O-O 12. Qc2 Re8 13. Be3 Qf6 14. Rab1
Rab8 15. Ng5 Qg6 16. Nxe4 Bxe4 17. Bxe4 Rxe4 18. f3 Rxe3 19. Qd2 Rbe8 20. Rbd1
Rxe1+ 21. Rxe1 Rxe1+ 22. Qxe1 Qe6 23. Qd2 Na5 24. h3 Nc4 25. Qc1 Qe3+ 26. Qxe3
Nxe3 27. Kf2 Nd1+ 28. Ke2 Nxc3+ 29. Kd3 Nxa2 30. g4 a5 31. Kc2 b5 32. Kb3 Nc1+
33. Kc2 Ne2 34. Kd3 Nf4+ 35. Ke3 Nxh3 36. f4 a4 37. Kd3 b4 38. Kc2 Nxf4 39. Kb2
Nd3+ 40. Ka2 b3+ 41. Ka3 b2 42. Ka2 a3 43. Kb1 Nf4 44. g5 Ne2 45. Ka2 Nc3+ 46.
Kxa3 b1=Q 47. g6 c5 48. gxf7+ Kxf7 49. dxc5 Qa2+ 50. Kb4 d4 51. c6 Ke6 52. c7
Kd5 53. c8=Q Qa4# 0-1

[Variant "Standard"]
[Site "Europe Echecs"]

[Event "Championnat du monde jeunes U10F"]
[Date "2024.11.15"]
[White "Afandi, Sadagul"]
[Black "Kovacikova, Simona"]
[WhiteElo "1625"]
[BlackElo "1412"]
[Round "1.37"]
[Result "1-0"]
[TimeControl "5400+30"]

1. e4 {[%clk 1:30:55]} 1... e5 {[%clk 1:30:54]} 2. Nf3 {[%clk 1:31:15]} 2... Nc6
{[%clk 1:31:15]} 3. Bc4 {[%clk 1:31:31]} 3... Nf6 {[%clk 1:31:34]} 4. d3 {[%clk
1:31:50]} 4... d6 {[%clk 1:31:39]} 5. c3 {[%clk 1:31:43]} 5... h6 {[%clk
1:31:21]} 6. O-O {[%clk 1:31:43]} 6... a6 {[%clk 1:31:30]} 7. a4 {[%clk
1:31:01]} 7... Be7 {[%clk 1:31:15]} 8. Re1 {[%clk 1:30:51]} 8... O-O {[%clk
1:30:18]} 9. Nbd2 {[%clk 1:30:44]} 9... Be6 {[%clk 1:27:55]} 10. Nf1 {[%clk
1:27:29]} 10... Qd7 {[%clk 1:20:26]} 11. Ng3 {[%clk 1:24:38]} 11... d5 {[%clk
1:08:33]} 12. exd5 {[%clk 1:13:38]} 12... Bxd5 {[%clk 1:05:22]} 13. Be3 {[%clk
1:07:53]} 13... Bxc4 {[%clk 1:03:25]} 14. dxc4 {[%clk 1:08:03]} 14... Qe6 {[%clk
1:03:29]} 15. Bf4 {[%clk 1:00:14]} 15... Qxc4 {[%clk 0:59:27]} 16. Bxe5 {[%clk
1:00:07]} 16... Nxe5 {[%clk 0:59:07]} 17. Rxe5 {[%clk 0:57:58]} 17... Bd6 {[%clk
0:55:56]} 18. Qe2 {[%clk 0:39:02]} 18... Qc6 {[%clk 0:54:13]} 19. Nd4 {[%clk
0:38:03]} 19... Qd7 {[%clk 0:53:55]} 20. Re3 {[%clk 0:33:03]} 20... Rfe8 {[%clk
0:50:39]} 21. Ndf5 {[%clk 0:27:56]} 21... Rxe3 {[%clk 0:48:13]} 22. Qxe3 {[%clk
0:26:16]} 22... Nd5 {[%clk 0:45:02]} 23. Qf3 {[%clk 0:25:45]} 23... c6 {[%clk
0:40:54]} 24. Qg4 {[%clk 0:23:42]} 24... Kf8 {[%clk 0:36:43]} 25. Qxg7+ {[%clk
0:22:28]} 25... Ke8 {[%clk 0:36:51]} 26. Qg8+ {[%clk 0:21:35]} 26... Bf8 {[%clk
0:36:56]} 27. Re1+ {[%clk 0:21:50]} 27... Ne7 {[%clk 0:37:08]} 28. Ng7+ {[%clk
0:19:46]} 28... Kd8 {[%clk 0:37:22]} 29. Qxf8+ {[%clk 0:19:53]} 1-0

[Variant "Standard"]
[Site "Europe Echecs"]

[Event "Championnat du monde jeunes U10F"]
[Date "2024.11.16"]
[White "Bayramova, Aya"]
[Black "Berikkyzy Alanna"]
[WhiteElo "1634"]
[BlackElo "2043"]
[Round "2.1"]
[Result "0-1"]
[TimeControl "5400+30"]

1. d4 {[%clk 1:30:58]} 1... Nf6 {[%clk 1:30:18]} 2. c4 {[%clk 1:31:20]} 2... e6
{[%clk 1:30:27]} 3. Nc3 {[%clk 1:31:32]} 3... Bb4 {[%clk 1:30:39]} 4. Bg5 d5
{[%clk 1:29:44]} 5. cxd5 {[%clk 1:27:23]} 5... exd5 {[%clk 1:29:50]} 6. Qa4+
{[%clk 1:26:13]} 6... Nc6 {[%clk 1:29:50]} 7. e3 {[%clk 1:26:17]} 7... h6 {[%clk
1:26:44]} 8. Bxf6 Qxf6 {[%clk 1:24:41]} 9. Nf3 {[%clk 1:20:29]} 9... O-O {[%clk
1:22:29]} 10. Bb5 {[%clk 1:18:02]} 10... a5 {[%clk 1:16:55]} 11. O-O {[%clk
1:15:14]} 11... Ne7 12. a3 {[%clk 1:11:56]} 12... Bd6 {[%clk 1:12:51]} 13. e4
dxe4 {[%clk 1:10:17]} 14. Nxe4 {[%clk 1:08:51]} 14... Qg6 {[%clk 1:09:03]} 15.
Nc3 {[%clk 1:09:55]} 15... Qf6 {[%clk 1:10:17]} 16. Ne4 {[%clk 1:08:51]} 16...
Qg6 {[%clk 1:29:50]} 17. Nc3 {[%clk 1:09:55]} 17... Qf6 {[%clk 1:10:17]} 18. Ne4
{[%clk 1:08:51]} 18... Qg6 {[%clk 1:09:03]} 19. Nc3 {[%clk 1:09:55]} 19... Qf6
{[%clk 1:10:17]} 20. Ne4 {[%clk 1:08:51]} 20... Qg6 21. Bd3 {[%clk 0:59:25]}
21... Qf6 {[%clk 1:10:17]} 22. Bb5 {[%clk 1:08:51]} 22... Qg6 23. Bd3 {[%clk
0:59:25]} 23... Bf5 {[%clk 1:07:08]} 24. Nxd6 {[%clk 0:59:28]} 24... Bxd3 {[%clk
1:06:31]} 25. Ne5 {[%clk 0:59:52]} 25... Qxd6 {[%clk 1:06:31]} 26. Nxd3 {[%clk
1:00:15]} 26... Qg6 {[%clk 1:06:31]} 27. Ne5 Qd6 28. Nd3 {[%clk 1:18:02]} 28...
Qg6 {[%clk 1:06:31]} 29. Ne5 Qd6 30. Nd3 Nc6 {[%clk 1:05:32]} 31. Ne5 Ne7 {[%clk
1:14:08]} 32. Nd3 {[%clk 1:15:03]} 32... Qg6 {[%clk 1:06:31]} 33. Ne5 Qd6 34.
Nd3 {[%clk 0:57:43]} 34... Nc6 {[%clk 1:05:32]} 35. Rad1 {[%clk 0:48:59]} 35...
Qxd4 {[%clk 1:03:43]} 36. Qb5 {[%clk 0:48:03]} 36... Qd6 {[%clk 1:05:32]} 37.
Qa4 Qd4 38. Qb5 {[%clk 0:48:03]} 38... Qd6 {[%clk 1:05:32]} 39. Qa4 Qd4 40. Qb5
Qb6 {[%clk 0:58:04]} 41. Qa4 Qd4 42. Qb5 Qb6 {[%clk 0:58:04]} 43. Qa4 Qd4 44.
Qb5 Qb6 45. Qxb6 {[%clk 0:44:56]} 45... cxb6 {[%clk 0:58:31]} 46. Nf4 {[%clk
0:45:15]} 46... Rad8 {[%clk 0:57:37]} 47. Nd3 {[%clk 0:48:03]} 47... Ra8 {[%clk
0:58:31]} 48. Nf4 {[%clk 0:45:15]} 48... Rad8 {[%clk 1:07:08]} 49. Nd3 {[%clk
0:48:03]} 49... Ra8 {[%clk 0:58:31]} 50. Nf4 {[%clk 0:45:15]} 50... Rad8 51. Nd5
{[%clk 0:44:48]} 51... b5 {[%clk 0:57:24]} 52. f3 {[%clk 0:44:59]} 52... Rfe8
{[%clk 0:54:32]} 53. Kf2 {[%clk 1:00:15]} 53... Rf8 {[%clk 0:57:24]} 54. Kg1
Rfe8 {[%clk 0:54:32]} 55. Kf2 Re5 {[%clk 0:52:39]} 56. Nc3 {[%clk 0:44:26]}
56... Rxd1 {[%clk 0:48:17]} 57. Rxd1 {[%clk 0:44:54]} 57... b4 {[%clk 0:47:48]}
58. axb4 {[%clk 0:44:06]} 58... Nxb4 {[%clk 0:47:17]} 59. Rd8+ {[%clk 0:44:00]}
59... Kh7 {[%clk 0:47:45]} 60. Rd7 {[%clk 0:44:21]} 60... b5 {[%clk 0:47:41]}
61. f4 {[%clk 0:43:46]} 61... Rf5 {[%clk 0:47:30]} 62. Kf3 {[%clk 0:44:06]}
62... g5 {[%clk 0:46:52]} 63. g3 {[%clk 0:43:01]} 63... gxf4 {[%clk 0:45:12]}
64. gxf4 {[%clk 0:43:27]} 64... Kg6 {[%clk 0:42:07]} 65. Rb7 {[%clk 0:43:23]}
65... Nd5 {[%clk 0:37:01]} 66. Rd7 {[%clk 0:43:01]} 66... Nb4 {[%clk 0:42:07]}
67. Rb7 {[%clk 0:43:23]} 67... Nd5 {[%clk 0:37:01]} 68. Rd7 {[%clk 0:43:01]}
68... Nb4 {[%clk 0:42:07]} 69. Rb7 {[%clk 0:43:23]} 69... Nd5 {[%clk 0:37:01]}
70. Rd7 {[%clk 0:43:01]} 70... Nb4 {[%clk 0:42:07]} 71. Rb7 {[%clk 0:43:23]}
71... Nd5 {[%clk 0:37:01]} 72. Rd7 {[%clk 0:43:01]} 72... Nb4 {[%clk 0:42:07]}
73. Rb7 {[%clk 0:43:23]} 73... Nd5 {[%clk 0:37:01]} 74. Ne2 {[%clk 0:36:06]}
74... b4 {[%clk 0:36:08]} 75. Rb5 {[%clk 0:35:27]} 75... a4 {[%clk 0:35:34]} 76.
Ra5 {[%clk 0:35:42]} 76... Nb6 {[%clk 0:32:55]} 77. Ra6 {[%clk 0:35:55]} 77...
Rf6 {[%clk 0:32:55]} 78. Ra5 {[%clk 0:35:42]} 78... Rf5 {[%clk 0:32:55]} 79. Ra6
{[%clk 0:35:55]} 79... Rf6 {[%clk 0:32:55]} 80. Ng3 {[%clk 0:35:08]} 80... Rf5
{[%clk 0:32:55]} 81. Ne2 {[%clk 0:35:55]} 81... Rf6 {[%clk 0:32:55]} 82. Ng3
{[%clk 0:35:08]} 82... Rc6 {[%clk 0:29:32]} 83. Ne2 {[%clk 0:35:55]} 83... Rf6
{[%clk 0:32:55]} 84. Ng3 {[%clk 0:35:08]} 84... Rc6 {[%clk 0:48:17]} 85. Ne2
{[%clk 0:35:55]} 85... Rf6 {[%clk 0:32:55]} 86. Ng3 {[%clk 0:35:08]} 86... Rc6
87. Ne4 {[%clk 0:33:06]} 87... f6 {[%clk 0:25:57]} 88. Nf2 {[%clk 0:31:54]}
88... Kf7 {[%clk 0:18:48]} 89. Nd3 {[%clk 0:32:03]} 89... b3 {[%clk 0:18:55]}
90. Ke4 {[%clk 0:30:06]} 90... Ke6 {[%clk 0:16:28]} 91. h4 {[%clk 0:26:51]}
91... Kd7 {[%clk 0:15:26]} 92. Kf5 {[%clk 0:26:54]} 92... Kc7 {[%clk 0:15:25]}
93. Ke4 {[%clk 0:26:51]} 93... Kd7 {[%clk 0:15:26]} 94. Kf5 {[%clk 0:26:54]}
94... Kc7 {[%clk 0:15:25]} 95. Ra7+ {[%clk 0:25:28]} 95... Kb8 {[%clk 0:15:49]}
96. Rh7 {[%clk 0:25:48]} 96... Nc4 {[%clk 0:15:38]} 97. Rd7 {[%clk 0:21:47]}
97... Nb6 {[%clk 0:15:49]} 98. Rh7 {[%clk 0:25:48]} 98... Nc4 {[%clk 0:15:38]}
99. Rd7 Nxb2 {[%clk 0:14:15]} 100. Nxb2 {[%clk 0:21:07]} 100... a3 {[%clk
0:14:36]} 101. Na4 {[%clk 0:21:15]} 101... b2 {[%clk 0:14:50]} 102. Ke4 0-1

[Variant "Standard"]
[Site "Europe Echecs"]

[Event "Championnat du monde jeunes U10F"]
[Date "2024.11.16"]
[White "Yunker, Alisa Genrietta"]
[Black "Afandi, Sadagul"]
[WhiteElo "1872"]
[BlackElo "1625"]
[Round "2.2"]
[Result "1-0"]
[TimeControl "5400+30"]

1. d4 {[%clk 1:30:59]} 1... d5 {[%clk 1:30:51]} 2. c4 c6 {[%clk 1:31:14]} 3.
cxd5 {[%clk 1:31:50]} 3... cxd5 {[%clk 1:31:36]} 4. Nc3 {[%clk 1:32:18]} 4...
Nf6 {[%clk 1:31:51]} 5. Nf3 {[%clk 1:32:45]} 5... Bf5 {[%clk 1:32:03]} 6. Qb3
{[%clk 1:33:04]} 6... b6 {[%clk 1:31:34]} 7. Bg5 {[%clk 1:31:18]} 7... e6 {[%clk
1:30:43]} 8. e3 {[%clk 1:27:11]} 8... Be7 {[%clk 1:26:05]} 9. Bb5+ {[%clk
1:26:31]} 9... Nbd7 {[%clk 1:25:06]} 10. Ne5 {[%clk 1:22:19]} 10... O-O {[%clk
1:19:27]} 11. Bxd7 {[%clk 1:18:43]} 11... a6 {[%clk 1:12:38]} 12. Bc6 {[%clk
1:18:04]} 12... Ra7 {[%clk 1:09:25]} 13. O-O {[%clk 1:17:36]} 13... b5 {[%clk
1:00:57]} 14. Rac1 {[%clk 1:14:50]} 14... Rc7 {[%clk 0:58:14]} 15. a4 {[%clk
1:06:34]} 15... b4 {[%clk 0:56:20]} 16. Na2 {[%clk 1:06:56]} 16... a5 {[%clk
0:55:14]} 17. Bb5 {[%clk 1:07:15]} 17... h6 {[%clk 0:40:17]} 18. Bf4 {[%clk
1:02:49]} 18... Rxc1 {[%clk 0:38:06]} 19. Rxc1 {[%clk 1:03:11]} 19... Qa8 {[%clk
0:33:41]} 20. Nc6 {[%clk 1:03:17]} 20... Qd8 {[%clk 0:38:06]} 21. Ne5 Qa8 {[%clk
0:33:41]} 22. Nc6 {[%clk 1:03:17]} 22... Qd8 {[%clk 0:38:06]} 23. Ne5 Qa8 {[%clk
0:33:41]} 24. Nc6 {[%clk 1:03:17]} 24... Qd8 {[%clk 0:38:06]} 25. Ne5 Qa8 {[%clk
0:33:41]} 26. Nc6 {[%clk 1:03:17]} 26... Qd8 {[%clk 0:38:06]} 27. Ne5 Qa8 {[%clk
0:33:41]} 28. Nc6 {[%clk 1:03:17]} 28... Re8 {[%clk 0:23:21]} 29. Bc7 {[%clk
1:02:57]} 29... Rf8 {[%clk 0:33:41]} 30. Bf4 {[%clk 1:03:17]} 30... Re8 {[%clk
0:23:21]} 31. Bc7 {[%clk 1:02:57]} 31... Bf8 {[%clk 0:18:10]} 32. Bxa5 {[%clk
1:02:06]} 32... Rc8 {[%clk 0:14:21]} 33. Bxb4 {[%clk 1:02:14]} 33... Ne4 {[%clk
0:09:15]} 34. Qa3 {[%clk 1:02:28]} 34... Bxb4 {[%clk 0:09:10]} 35. Qxb4 {[%clk
1:02:50]} 35... Kh7 {[%clk 0:09:01]} 36. f3 {[%clk 1:02:13]} 36... Nf6 {[%clk
0:08:46]} 37. Qe7 {[%clk 1:02:35]} 37... Bg6 {[%clk 0:08:26]} 38. Nab4 {[%clk
1:02:57]} 38... Bf5 {[%clk 0:08:46]} 39. Na2 {[%clk 1:02:35]} 39... Bg6 {[%clk
0:08:26]} 40. Nab4 {[%clk 1:02:57]} 40... Ne8 {[%clk 0:06:35]} 41. Na6 {[%clk
1:03:10]} 41... Nf6 {[%clk 0:08:26]} 42. Nab4 {[%clk 1:02:57]} 42... Ne8 {[%clk
0:06:35]} 43. Na6 {[%clk 1:03:10]} 43... Nf6 {[%clk 0:08:26]} 44. Nab4 {[%clk
1:02:57]} 44... Ne8 {[%clk 0:06:35]} 45. Na6 {[%clk 1:03:10]} 45... h5 {[%clk
0:05:25]} 46. Rc3 {[%clk 1:03:23]} 46... Nf6 {[%clk 0:03:50]} 47. Qa3 {[%clk
1:03:28]} 47... Nd7 {[%clk 0:02:51]} 48. b4 {[%clk 1:03:47]} 48... Nb6 {[%clk
0:02:17]} 49. Ne5 {[%clk 1:03:58]} 49... Nd7 {[%clk 0:02:51]} 50. Nc6 {[%clk
1:03:47]} 50... Nb6 {[%clk 0:02:17]} 51. Ne5 {[%clk 1:03:58]} 51... Rxc3 {[%clk
0:02:02]} 52. Qxc3 {[%clk 1:04:25]} 52... Nxa4 {[%clk 0:02:07]} 53. Qc6 {[%clk
1:04:51]} 53... Qxc6 {[%clk 0:01:59]} 54. Bxc6 {[%clk 1:05:18]} 54... Nb6 {[%clk
0:02:06]} 55. Nd7 {[%clk 1:05:43]} 55... Nc8 {[%clk 0:01:16]} 56. b5 {[%clk
1:06:08]} 56... Bd3 {[%clk 0:01:28]} 57. Nb4 {[%clk 1:06:35]} 57... Bc4 {[%clk
0:01:17]} 58. b6 {[%clk 1:06:55]} 58... Nxb6 {[%clk 0:01:02]} 59. Nxb6 {[%clk
1:07:21]} 59... Kg6 {[%clk 0:00:57]} 60. Nxc4 {[%clk 1:07:43]} 60... dxc4 {[%clk
0:01:12]} 61. Kf2 {[%clk 1:08:13]} 61... Kf5 {[%clk 0:00:56]} 62. Be4+ {[%clk
1:02:57]} 1-0

[Variant "Standard"]
[Site "Europe Echecs"]

[Event "Championnat du monde jeunes U10F"]
[Date "2024.11.16"]
[White "Li, Wan Qin"]
[Black "Yang, Aimee"]
[WhiteElo "1628"]
[BlackElo "1864"]
[Round "2.3"]
[Result "0-1"]
[TimeControl "5400+30"]

1. Nf3 {[%clk 1:30:58]} 1... Nf6 {[%clk 1:30:55]} 2. g3 {[%clk 1:31:19]} 2... g6
{[%clk 1:31:19]} 3. Bg2 {[%clk 1:31:08]} 3... Bg7 {[%clk 1:31:44]} 4. d4 {[%clk
1:31:16]} 4... O-O {[%clk 1:31:56]} 5. O-O {[%clk 1:31:19]} 5... d5 {[%clk
1:31:41]} 6. c4 {[%clk 1:29:56]} 6... c6 {[%clk 1:31:00]} 7. cxd5 {[%clk
1:29:47]} 7... cxd5 {[%clk 1:31:26]} 8. Nc3 {[%clk 1:29:43]} 8... Bf5 9. Bf4
{[%clk 1:28:15]} 9... Nc6 {[%clk 1:18:50]} 10. h3 {[%clk 1:24:21]} 10... Ne4
{[%clk 1:18:37]} 11. Qb3 {[%clk 1:21:53]} 11... Na5 {[%clk 1:10:17]} 12. Qd1
{[%clk 1:17:33]} 12... Rc8 {[%clk 1:05:32]} 13. Rc1 {[%clk 1:29:43]} 13... Nxc3
{[%clk 1:31:26]} 14. bxc3 {[%clk 1:10:34]} 14... Be4 15. Ne5 {[%clk 1:06:36]}
15... Bxg2 16. Kxg2 {[%clk 1:04:20]} 16... e6 17. Qa4 {[%clk 1:10:34]} 17... b6
18. Ng4 {[%clk 1:10:34]} 18... Qe7 {[%clk 0:52:17]} 19. e3 {[%clk 1:10:34]}
19... Rc4 {[%clk 0:36:01]} 20. Qc2 g5 {[%clk 0:31:36]} 21. Bxg5 {[%clk 0:49:37]}
21... Qxg5 {[%clk 0:31:36]} 22. f4 {[%clk 0:49:50]} 22... Qf5 {[%clk 0:31:18]}
23. Qf2 {[%clk 0:48:31]} 23... Rfc8 {[%clk 0:31:18]} 24. Qd2 {[%clk 0:48:31]}
24... Nb7 {[%clk 0:31:18]} 25. Nf2 {[%clk 0:48:31]} 25... Nd6 {[%clk 0:31:18]}
26. g4 {[%clk 0:45:21]} 26... Qg6 {[%clk 0:31:03]} 27. Kh2 {[%clk 0:43:57]}
27... b5 28. Rg1 {[%clk 0:40:10]} 28... Ne4 29. Qe2 {[%clk 0:37:02]} 29... Nxf2
{[%clk 0:27:02]} 30. Qxf2 {[%clk 0:36:22]} 30... Rxc3 31. Rxc3 {[%clk 0:35:39]}
31... Rxc3 {[%clk 0:27:44]} 32. f5 Qg5 33. fxe6 {[%clk 0:34:01]} 33... fxe6
{[%clk 0:24:07]} 34. Rf1 {[%clk 0:34:02]} 34... Qe7 {[%clk 0:24:26]} 35. g5
{[%clk 0:30:43]} 35... Qc7+ {[%clk 0:23:33]} 36. Qf4 {[%clk 0:27:47]} 36...
Qxf4+ {[%clk 0:23:48]} 37. Rxf4 {[%clk 0:27:56]} 37... Rxe3 {[%clk 0:24:09]} 38.
Kg2 {[%clk 0:27:43]} 38... Re4 {[%clk 0:24:22]} 39. Rxe4 {[%clk 0:28:00]} 39...
dxe4 {[%clk 0:24:39]} 40. Kf2 {[%clk 0:28:20]} 40... Bxd4+ {[%clk 0:24:50]} 41.
Ke2 {[%clk 0:28:44]} 41... a5 {[%clk 0:25:08]} 42. a3 {[%clk 0:29:09]} 42... b4
{[%clk 0:25:32]} 43. axb4 {[%clk 0:29:33]} 43... axb4 {[%clk 0:25:56]} 44. Kd2
{[%clk 0:29:58]} 44... b3 {[%clk 0:26:13]} 45. h4 {[%clk 0:30:24]} 45... b2
{[%clk 0:26:34]} 46. Kc2 {[%clk 0:30:49]} 46... e3 {[%clk 0:26:52]} 47. Kd3
{[%clk 0:31:16]} 47... b1=Q+ {[%clk 0:27:08]} 48. Kxd4 {[%clk 0:31:41]} 48... e2
{[%clk 0:27:26]} 49. h5 {[%clk 0:32:07]} 49... e1=Q {[%clk 0:27:46]} 50. Kc5
{[%clk 0:32:31]} 50... Qbb4+ {[%clk 0:28:03]} 51. Kc6 {[%clk 0:32:53]} 51...
Qec3+ {[%clk 0:28:21]} 52. Kd7 {[%clk 0:33:16]} 52... Qbd4+ {[%clk 0:28:33]} 53.
Ke7 {[%clk 0:33:27]} 53... Qc7+ {[%clk 0:28:54]} 54. Kxe6 {[%clk 0:33:52]} 54...
Qcd7# {[%clk 0:29:13]} 0-1

[Variant "Standard"]
[Site "Europe Echecs"]

[Event "Championnat du monde jeunes U10F"]
[Date "2024.11.16"]
[White "Khusnitdinova, Husnorakhon"]
[Black "Nandinjiguur, Chinzorig"]
[WhiteElo "1626"]
[BlackElo "1807"]
[Round "2.4"]
[Result "0-1"]
[TimeControl "5400+30"]

1. e4 {[%clk 1:30:56]} 1... e5 {[%clk 1:30:29]} 2. Nf3 {[%clk 1:31:08]} 2... Nc6
{[%clk 1:30:51]} 3. Nc3 {[%clk 1:31:30]} 3... Nf6 {[%clk 1:30:59]} 4. d4 {[%clk
1:31:54]} 4... exd4 {[%clk 1:30:55]} 5. Nxd4 {[%clk 1:32:21]} 5... Bb4 {[%clk
1:31:04]} 6. Nxc6 {[%clk 1:32:39]} 6... bxc6 {[%clk 1:31:24]} 7. Bd3 {[%clk
1:33:04]} 7... d5 {[%clk 1:31:15]} 8. exd5 {[%clk 1:33:16]} 8... cxd5 {[%clk
1:31:35]} 9. O-O {[%clk 1:33:35]} 9... O-O {[%clk 1:31:54]} 10. Bg5 {[%clk
1:33:57]} 10... c6 {[%clk 1:31:47]} 11. Qf3 {[%clk 1:34:13]} 11... h6 {[%clk
1:31:53]} 12. Bf4 {[%clk 0:55:52]} 12... Bd6 {[%clk 1:29:45]} 13. Rfe1 {[%clk
0:49:22]} 13... Bg4 14. Qe3 {[%clk 0:46:30]} 14... Re8 {[%clk 1:24:22]} 15. Qd2
{[%clk 0:46:39]} 15... Bxf4 {[%clk 1:18:02]} 16. Qxf4 {[%clk 0:47:04]} 16... Qb8
{[%clk 1:15:35]} 17. Rxe8+ {[%clk 0:41:26]} 17... Qxe8 {[%clk 1:13:39]} 18. f3
{[%clk 0:40:56]} 18... Be6 {[%clk 1:13:53]} 19. Re1 {[%clk 0:36:17]} 19... Qb8
{[%clk 1:11:21]} 20. Qc1 {[%clk 0:32:41]} 20... c5 {[%clk 1:09:30]} 21. Bf1
{[%clk 0:26:54]} 21... c4 {[%clk 1:00:19]} 22. b3 {[%clk 0:23:42]} 22... Qb4
{[%clk 0:50:45]} 23. Ne2 {[%clk 0:22:58]} 23... Rc8 {[%clk 0:49:57]} 24. Nc3
{[%clk 0:23:42]} 24... Ra8 {[%clk 0:50:45]} 25. Ne2 {[%clk 0:22:58]} 25... Rc8
{[%clk 0:49:57]} 26. Nc3 {[%clk 0:23:42]} 26... Ra8 {[%clk 0:50:45]} 27. Ne2
{[%clk 0:22:58]} 27... Rc8 28. Qd1 {[%clk 0:15:39]} 28... Ra8 {[%clk 0:50:45]}
29. Qc1 {[%clk 0:22:58]} 29... Rc8 30. Qd1 cxb3 {[%clk 0:47:55]} 31. cxb3 {[%clk
0:11:25]} 31... d4 {[%clk 0:37:24]} 32. Nf4 {[%clk 0:10:39]} 32... Bf5 {[%clk
0:29:04]} 33. Ne2 {[%clk 0:11:25]} 33... Be6 34. Nf4 {[%clk 0:10:39]} 34... Bf5
{[%clk 0:29:04]} 35. Ne2 {[%clk 0:11:25]} 35... Be6 36. Nf4 {[%clk 0:10:39]}
36... Bf5 {[%clk 0:29:04]} 37. Bd3 {[%clk 0:04:43]} 37... Bxd3 {[%clk 0:27:18]}
38. Nxd3 {[%clk 0:05:11]} 38... Qd6 {[%clk 0:27:00]} 39. Qd2 {[%clk 0:05:02]}
39... Nd5 {[%clk 0:26:05]} 40. Rc1 {[%clk 0:01:29]} 40... Nc3 {[%clk 0:24:48]}
41. b4 {[%clk 0:01:11]} 41... Re8 {[%clk 0:24:00]} 42. Re1 {[%clk 0:00:53]}
42... Rc8 {[%clk 0:24:48]} 43. Rc1 {[%clk 0:01:11]} 43... Re8 {[%clk 0:24:00]}
44. Re1 {[%clk 0:00:53]} 44... Rxe1+ {[%clk 0:21:58]} 45. Qxe1 {[%clk 0:01:12]}
45... Qe6 {[%clk 0:19:43]} 46. Qxe6 {[%clk 0:00:31]} 46... fxe6 {[%clk 0:20:00]}
47. a3 {[%clk 0:00:50]} 47... Kf7 {[%clk 0:18:37]} 48. Kf2 {[%clk 0:00:38]}
48... Ke7 {[%clk 0:17:57]} 49. Nb2 {[%clk 0:00:35]} 49... Kd6 {[%clk 0:16:44]}
50. Ke1 {[%clk 0:00:34]} 50... Kd5 {[%clk 0:16:24]} 51. a4 {[%clk 0:00:44]}
51... Na2 {[%clk 0:14:40]} 52. b5 {[%clk 0:01:07]} 52... e5 {[%clk 0:14:32]} 53.
Nd3 {[%clk 0:01:27]} 53... Nc3 {[%clk 0:14:20]} 54. Nb2 {[%clk 0:00:54]} 54...
Kc5 {[%clk 0:12:48]} 55. Nd3+ {[%clk 0:01:15]} 55... Kd5 56. Nb2 {[%clk
0:01:39]} 56... e4 {[%clk 0:09:20]} 57. fxe4+ {[%clk 0:01:47]} 57... Kxe4 {[%clk
0:09:38]} 58. Kd2 {[%clk 0:02:10]} 58... Kd5 {[%clk 0:09:20]} 59. Ke1 {[%clk
0:01:47]} 59... Ke4 {[%clk 0:09:38]} 60. Kd2 g6 {[%clk 0:08:15]} 61. h3 {[%clk
0:01:24]} 61... g5 {[%clk 0:06:31]} 62. g4 {[%clk 0:01:29]} 62... Kd5 {[%clk
0:04:51]} 63. Kd3 {[%clk 0:01:43]} 63... Kc5 {[%clk 0:05:04]} 0-1

[Variant "Standard"]
[Site "Europe Echecs"]